Cogmind - Beta 14 --- EXPLORER MODE // 2024.12.05 @ 13:02:43 Player: mrjoebobfred Result: Self-destructed Performance ------------- Evolutions (3) 1500 Regions Visited (4) 800 Robots Destroyed (49) 245 Value Destroyed (1180) 1180 Prototype IDs (3) 60 Alien Tech Used (0) 0 Bonus (83) 83 TOTAL SCORE: 3868 Bonus ------- High Alert Combat Kills 43 Follower Combat Kills 40 Cogmind --------- Core Integrity 690/700 Matter 260/300 Energy 136/150 System Corruption 0% Temperature Cool (0) Movement Rolling (120) Ox2 Location -7/Factory Parts ------- > --- POWER (1) -------- Micro Nuclear Core > --- PROPULSION (3) --- Wheel Compact Wheel > --- UTILITY (8) ------ Heat Sink Heat Sink Medium Storage Unit Structural Scanner Improved Light Armor Plating Medium Reactive Plating > --- WEAPON (2) ------- Improved EM Pulse Cannon Improved EM Pulse Cannon > --- INVENTORY (10) --- Improved VTOL Module Improved VTOL Module Improved VTOL Module Medium Armor Plating Peak State ------------ > --- POWER ------------ Light Nuclear Core > --- PROPULSION ------- Wheel Compact Wheel > --- UTILITY ---------- Heat Sink Heat Sink Medium Storage Unit Structural Scanner Medium Armor Plating Improved Light Armor Plating Medium Reactive Plating > --- WEAPON ----------- Improved EM Pulse Cannon Improved EM Pulse Cannon > --- INVENTORY -------- Improved VTOL Module Improved VTOL Module Improved VTOL Module Medium Armor Plating [Rating: 27] Favorites ----------- Power Light Ion Engine Engine Light Ion Engine Power Core Light Nuclear Core Propulsion Wheel Wheel Wheel Utility Medium Storage Unit Device Heat Sink Storage Medium Storage Unit Protection Light Armor Plating Weapon Advanced Beam Cannon Energy Cannon Advanced Beam Cannon Ballistic Gun Assault Rifle Build | -11 -10 -9 -8 -7 ------- Run | Yrd Mat Mat Mat Fac Slots Evolved 7 | . 1 2 2 2 Power . | . . . . . Propulsion 1 | . . 1 . . Utility 6 | . 1 1 2 2 Weapon . | . . . . . Parts Attached 29 | 4 4 9 8 4 Power 3 | . 1 . 1 1 Engine 1 | . 1 . . . Core 2 | . . . 1 1 Reactor . | . . . . . Propulsion 7 | 2 . 2 3 . Treads . | . . . . . Leg . | . . . . . Wheel 7 | 2 . 2 3 . Hover . | . . . . . Flight . | . . . . . Utility 11 | . 3 4 3 1 Device 4 | . 1 1 2 . Storage 1 | . 1 . . . Processor . | . . . . . Hackware . | . . . . . Protection 6 | . 1 3 1 1 Artifact . | . . . . . Weapon 8 | 2 . 3 1 2 Energy Gun . | . . . . . Energy Cannon 6 | . . 3 1 2 Ballistic Gun 2 | 2 . . . . Ballistic Cannon . | . . . . . Launcher . | . . . . . Special Weapon . | . . . . . Impact Weapon . | . . . . . Slashing Weapon . | . . . . . Piercing Weapon . | . . . . . Special Melee Weapon . | . . . . . Unidentified Prototypes 1 | . . 1 . . Parts Lost 2 | . . . 1 1 Power . | . . . . . Propulsion 2 | . . . 1 1 Utility . | . . . . . Weapon . | . . . . . Highest Loss Streak 1 | . . . 1 1 To Critical Strikes . | . . . . . Average Slot Usage (%) 87 | . 89 90 84 81 Engine 7 | . 12 10 4 . Core 2 | . . . 3 7 Wheel 22 | . 25 25 19 17 Device 10 | . 2 6 14 21 Storage 9 | . 12 10 8 7 Protection 15 | . 12 18 15 14 Energy Cannon 12 | . . 15 16 14 Ballistic Gun 6 | . 25 4 . . Peak Build Rating 27 | 4 8 16 22 27 Average Rating 14 | 1 7 12 17 23 On Entrance 9 | . 4 8 15 22 Naked Turns . | . . . . . Heaviest Build 56 | 4 21 38 38 56 Greatest Support 42 | 20 20 42 42 36 Greatest Overweight (x) 2 | . 1 1 1 2 Average Overweight (x) . | . . . . 1 Largest Inventory Capacity 10 | 5 10 10 10 10 Average Capacity 9 | 5 9 10 10 10 Most Carried 5 | 4 3 1 5 4 Average Carried 1 | 2 . . 2 4 Final Capacity 10 | 5 10 10 10 10 Final Carried 4 | 3 . 1 4 4 Class Distribution -------------------- 80% | Hacker-Mutant 19% | Scavenger-Mutant Dominant Class ---------------- Hacker-Mutant | -10/Materials Hacker-Mutant | -9/Materials Hacker-Mutant | -8/Materials Scavenger-Mutant | -7/Factory Resources | -11 -10 -9 -8 -7 ----------- Run | Yrd Mat Mat Mat Fac Matter Collected 642 | 270 150 142 70 10 Remotely . | . . . . . Salvage Created 1759 | 133 294 776 425 131 Parts 119 | 8 16 62 24 9 Haulers Intercepted 1 | . . 1 . . Recyclers Shooed . | . . . . . Parts Field Recycled . | . . . . . Retrieved Matter . | . . . . . Parts Self-Destructed . | . . . . . Prevented . | . . . . . Kills | -11 -10 -9 -8 -7 ------- Run | Yrd Mat Mat Mat Fac Combat Hostiles Destroyed 30 | . 7 17 5 1 Guns 9 | . 7 2 . . Cannons 21 | . . 15 5 1 Classes Destroyed 11 | 2 3 3 2 1 Worker 3 | . . . 1 2 Tunneler 3 | 3 . . . . Hauler 1 | . . 1 . . Recycler 3 | 1 . 1 1 . Operator 1 | . . . . 1 Watcher 8 | . 2 3 3 . Swarmer 9 | . 2 7 . . Grunt 13 | . 5 5 3 . Brawler 1 | . . 1 . . Sentry 6 | . . 4 1 1 Hunter 1 | . . . 1 . Best Kill Streak 6 | 2 4 6 2 2 Combat Bots Only 6 | . 3 6 2 1 Max Kills in Single Turn 1 | 1 1 1 1 1 Gunslinging . | . . . . . Exploded . | . . . . . Melee . | . . . . . Uniques/NPCs Destroyed . | . . . . . Combat | -11 -10 -9 -8 -7 -------- Run | Yrd Mat Mat Mat Fac Hostile Shots Fired 115 | . 20 30 36 29 Missed 35 | . 4 8 10 13 Damage Taken 560 | . 99 127 262 72 Core 48 | . 3 12 23 10 Absorbed by Shields . | . . . . . Ignored by Resistances 362 | . 66 85 158 53 Core Remaining (%) 97 | 100 98 97 95 . Volleys Fired 97 | 9 20 33 26 9 Largest 2 | 2 2 2 2 2 Hottest 143 | 40 40 136 143 143 Shots Fired 171 | 10 40 54 52 15 Gun 64 | 10 40 14 . . Cannon 107 | . . 40 52 15 Launcher . | . . . . . Special . | . . . . . Kinetic 64 | 10 40 14 . . Thermal 105 | . . 40 52 13 Explosive . | . . . . . Electromagnetic 2 | . . . . 2 Robot Hit Streak 32 | 10 25 25 23 32 Robot Miss Streak 3 | . 3 1 1 1 Penetration Max . | . . . . . Secondary Targets 3 | . 3 . . . Max Gunslinging Chain 1 | . 1 . . . Shots Hit Robots 141 | 10 34 41 42 14 Core Hits 70 | 5 17 25 16 7 Critical Kills 1 | . . . . 1 Critical Parts Destroyed . | . . . . . Critical Strikes 1 | . . . . 1 Meltdown 1 | . . . . 1 Melee Attacks . | . . . . . Impact . | . . . . . Slashing . | . . . . . Piercing . | . . . . . Sneak Attacks . | . . . . . Combat Hostiles . | . . . . . Follow-up Attacks . | . . . . . Damage Inflicted 2586 | 120 415 804 923 324 Guns 678 | 120 415 143 . . Cannons 1908 | . . 661 923 324 Explosions . | . . . . . Melee . | . . . . . Ramming . | . . . . . Kinetic 678 | 120 415 143 . . Thermal 1858 | . . 661 923 274 Explosive . | . . . . . Electromagnetic 50 | . . . . 50 Impact . | . . . . . Slashing . | . . . . . Piercing . | . . . . . Highest Corruption 1 | . 1 1 . . Average Corruption 1 | . 1 1 . . Corruption Purged . | . . . . . Corruption Blocked . | . . . . . Effects 3 | . . 3 . . Message Errors 2 | . . 2 . . Parts Fused 1 | . . 1 . . Overload Shots . | . . . . . Overflow Damage 21 | . . 7 14 . Projectiles 21 | . . 7 14 . Explosions . | . . . . . Melee . | . . . . . Knockbacks . | . . . . . Impact . | . . . . . Kinetic . | . . . . . Secondary . | . . . . . Self-Inflicted Damage . | . . . . . Shots . | . . . . . Rammed . | . . . . . Targets Rammed . | . . . . . Kicked . | . . . . . Crushed . | . . . . . Highest Temperature 393 | . 38 289 393 90 Average Temperature 113 | . 16 117 137 35 Received Heat Transfer 393 | . 81 54 216 42 Effects 2 | . . 1 1 . Energy Bleed 2 | . . 1 1 . Siege Activations . | . . . . . Robots Corrupted . | . . . . . Combat Hostiles . | . . . . . Parts Fried . | . . . . . Impact Corruptions . | . . . . . Robots Melted 1 | . . . . 1 Combat Hostiles . | . . . . . Parts Melted 9 | . . 1 4 4 Heat Transferred 3145 | . . 1110 1591 444 Parts Sabotaged . | . . . . . Parts Stolen . | . . . . . Parts Stripped . | . . . . . Power Chain Reactions . | . . . . . Alert | -11 -10 -9 -8 -7 ------- Run | Yrd Mat Mat Mat Fac Peak Influence 611 | 20 252 611 292 230 Initial 100 | . 9 75 94 100 Average 204 | 9 156 285 216 144 Maximum Alert Level 2 | . 1 2 1 1 Low Security (%) 54 | 100 57 32 37 97 Level 1 36 | . 42 42 62 2 Level 2 8 | . . 24 . . Level 3 . | . . . . . Level 4 . | . . . . . Level 5 . | . . . . . High Security . | . . . . . Max Security . | . . . . . Squads Dispatched 3 | . 1 1 . 1 Investigation 2 | . 1 . . 1 Extermination . | . . . . . Reinforcement 1 | . . 1 . . Assault . | . . . . . Garrison . | . . . . . Intercept . | . . . . . Searches Triggered . | . . . . . Construction Impeded . | . . . . . Haulers Reinforced . | . . . . . Active Scanning Responses . | . . . . . Cargo Convoy Interrupts . | . . . . . Stealth | -11 -10 -9 -8 -7 --------- Run | Yrd Mat Mat Mat Fac Distress Signals 4 | . 2 1 1 . Communications Jammed . | . . . . . Distress Signals . | . . . . . Times Spotted 48 | . 10 23 11 4 Peak Tracking Total 4 | . 3 4 4 2 Tactical Retreats . | . . . . . Traps | -11 -10 -9 -8 -7 ------- Run | Yrd Mat Mat Mat Fac Traps Triggered 5 | . 2 2 . 1 Indirectly . | . . . . . Trap Hack Attempts . | . . . . . Triggered . | . . . . . Disarmed 2 | . . 2 . . Reprogrammed . | . . . . . Reused . | . . . . . Traps Extracted . | . . . . . Installed . | . . . . . Triggered . | . . . . . Machines | -11 -10 -9 -8 -7 ---------- Run | Yrd Mat Mat Mat Fac Machines Disabled . | . . . . . Max in Single Turn . | . . . . . Machines Repaired . | . . . . . Machines Dismantled . | . . . . . Machines Sabotaged . | . . . . . Overloaded Fab Kills . | . . . . . Hacking | -11 -10 -9 -8 -7 --------- Run | Yrd Mat Mat Mat Fac Machines Accessed 11 | . 4 3 1 3 Terminals 10 | . 4 3 . 3 Fabricators . | . . . . . Repair Stations . | . . . . . Recycling Units . | . . . . . Scanalyzers 1 | . . . 1 . Garrison Access . | . . . . . Total Hacks 39 | . 21 7 2 9 Successful 26 | . 14 6 2 4 Failed 13 | . 7 1 . 5 Catastrophic . | . . . . . Database Lockouts . | . . . . . Manual 20 | . 15 2 . 3 Terminals 37 | . 21 7 . 9 Fabricators . | . . . . . Repair Stations . | . . . . . Recycling Units . | . . . . . Scanalyzers 2 | . . . 2 . Garrison Access . | . . . . . Terminal Hacks 17 | . 9 6 . 2 Robot Analysis 6 | . 6 . . . Level Access Points 1 | . . 1 . . Branch Access Points 1 | . . . . 1 Locate Traps 5 | . 2 2 . 1 Disarm Traps 1 | . . 1 . . Dispatch Records 1 | . 1 . . . Zone Layout 2 | . . 2 . . Fabricator Hacks . | . . . . . Repair Station Hacks . | . . . . . Recycling Unit Hacks . | . . . . . Scanalyzer 2 | . . . 2 . Insert Component 2 | . . . 2 . Garrison Access Hacks . | . . . . . Unauthorized Hacks 7 | . 5 . . 2 Terminals 7 | . 5 . . 2 Botnet 4 | . 2 . . 2 Skim 3 | . 3 . . . Fabricators . | . . . . . Repair Stations . | . . . . . Recycling Units . | . . . . . Scanalyzers . | . . . . . Garrison Access . | . . . . . Data Cores Recovered 1 | . . . . 1 Used 1 | . . . . 1 Hacking Detections 9 | . 3 3 1 2 Full Trace Events 2 | . 1 . . 1 Feedback Events . | . . . . . Feedback Blocked . | . . . . . Robot Schematics Acquired . | . . . . . Robots Built . | . . . . . Authchips . | . . . . . Time . | . . . . . Total Robot Build Rating . | . . . . . Part Schematics Acquired . | . . . . . Parts Built . | . . . . . Authchips . | . . . . . Time . | . . . . . Total Part Build Rating . | . . . . . Parts Repaired . | . . . . . Time . | . . . . . Parts Recycled . | . . . . . Recycled Matter . | . . . . . Retrieved Matter . | . . . . . Retrieved Components . | . . . . . Parts Scanalyzed . | . . . . . Part Schematics Acquired . | . . . . . Parts Damaged . | . . . . . Bothacking | -11 -10 -9 -8 -7 ------------ Run | Yrd Mat Mat Mat Fac Used RIF Installer . | . . . . . Robots Hacked . | . . . . . Non-combat . | . . . . . Combat . | . . . . . Robot Hacks Applied . | . . . . . Relay Couplers Released . | . . . . . Fabnet Peak Effective % . | . . . . . Robots Rewired 1 | . . . . 1 Allies Hacked . | . . . . . Hacks Repelled . | . . . . . Allies | -11 -10 -9 -8 -7 -------- Run | Yrd Mat Mat Mat Fac Total Allies 1 | . . . . 1 Largest Group 1 | . . . . 1 Highest-Rated Group 32 | . . . . 32 Highest-Rated Ally 32 | . . . . 32 Total Orders . | . . . . . Ally Attacks 2 | . . . . 2 Total Damage 99 | . . . . 99 Kills 1 | . . . . 1 Allies Corrupted . | . . . . . Allies Melted . | . . . . . Intel | -11 -10 -9 -8 -7 ------- Run | Yrd Mat Mat Mat Fac Robot Analysis Total 6 | . 6 . . . Derelict Logs Recovered . | . . . . . Drone Launches . | . . . . . Drone Recoveries . | . . . . . Exploration | -11 -10 -9 -8 -7 ------------- Run | Yrd Mat Mat Mat Fac Turns Passed 1294 | 69 252 455 271 247 Spaces Moved 991 | 65 211 370 155 190 Core 60 | 60 . . . . Treads . | . . . . . Legs . | . . . . . Wheels 931 | 5 211 370 155 190 Hover . | . . . . . Flight . | . . . . . Fastest Speed 50 | 50 80 93 93 101 Average Speed 92 | 52 83 93 102 107 Slowest Speed 120 | 80 95 101 105 120 Overloaded Moves . | . . . . . Propulsion Burnouts . | . . . . . Robots Hopped . | . . . . . Cave-ins Triggered . | . . . . . Exploration Rate (%) 25 | 3 50 49 15 9 Regions Visited 4 Branch Regions . Pre-discovered Areas . | . . . . . Known Exits Taken 4 | 1 1 1 1 . Unknown Exits Taken . | . . . . . Scrap Searched . | . . . . . Spaces Dug . | . . . . . Terrain Destroyed 1 | . . . 1 . Melee . | . . . . . Projectile 1 | . . . 1 . AOE . | . . . . . Terrain Rammed . | . . . . . Walls Destroyed . | . . . . . Machines Disabled . | . . . . . Actions | -11 -10 -9 -8 -7 --------- Run | Yrd Mat Mat Mat Fac Total 1186 | 88 246 420 214 218 Wait 38 | 7 12 5 14 . Move 987 | 64 210 369 154 190 Hop . | . . . . . Pick Up 9 | 4 . . 5 . Fast Attach 25 | 3 1 9 8 4 Attach 4 | 1 3 . . . Detach 1 | . . 1 . . Swap . | . . . . . Drop 14 | . . 3 7 4 Fire 97 | 9 20 33 26 9 Melee . | . . . . . Ram . | . . . . . Kick . | . . . . . Crush . | . . . . . Escape Stasis 8 | . . . . 8 Rewire 3 | . . . . 3 Trap . | . . . . . Miscellaneous . | . . . . . Route ------- -11/Scrapyard -10/Materials (discovered 2 exits: *Mat x2) -9/Materials (discovered 5 exits: *Mat x3 / *Min x2) -8/Materials -7/Factory (discovered 3 exits: Sto / Low x2) History --------- Turn | Location | Event 6 | -11/Scrapyard | Identified exit to Materials 6 | -11/Scrapyard | Discovered exit to Materials (range 12) 70 | -11/Scrapyard | Entered Materials 70 | -10/Materials | Evolved 1 slot: Utility x1 230 | -10/Materials | Identified exit to Materials 230 | -10/Materials | Discovered exit to Materials (range 12) 310 | -10/Materials | Discovered exit to Materials (range 4) 313 | -10/Materials | Build established: Hacker-Mutant 322 | -10/Materials | Entered another Materials area 322 | -9/Materials | Evolved 2 slots: Propulsion x1, Utility x1 657 | -9/Materials | Identified exit to Mines 657 | -9/Materials | Discovered exit to Mines (range 13) 659 | -9/Materials | Discovered exit to Mines (range 15) 665 | -9/Materials | Identified exit to Materials 777 | -9/Materials | Entered another Materials area 777 | -8/Materials | Evolved 2 slots: Utility x2 1046 | -8/Materials | Identified exit to Factory 1046 | -8/Materials | Discovered exit to Factory (range 3) 1048 | -8/Materials | Entered Factory 1048 | -7/Factory | Evolved 2 slots: Utility x2 1294 | -7/Factory | Identified exit to Storage 1294 | -7/Factory | Identified exit to Lower Caves 1295 | -7/Factory | Self-destructed Last Messages --------------- 01204_ Acquired Imp. EM Pulse Cannon. 01221_ Acquired Med. Reactive Plating. 01222_ Dropped Med. Armor Plating. 01231_ Dropped Lgt. Nuclear Core. 01232_ Acquired Mic. Nuclear Core. 01289_ Y-54 Guardian destroyed. 01289_ K-01 Serf collects debris. 01294_ Connecting with Terminal... >>Access(Branch) Found 3 branch access points: (113,170) Storage (146,48) Lower Caves (39,27) Lower Caves Map updated. >>Traps(Locate) Found 6 traps in 1 array: 6x Alarm Trap Map updated. 01294_ ALERT: Suspicious activity at Terminal F017. Dispatching Investigation squad. Map ----- +----------------------------------------------------+ | ?????????????????????????????????????????????????? | | ?????????????????????????????????????????????????? | | ?????????????????????????????????????????????????? | | ?????????????????????????????????????????????????? | | ?????????????????????????????????????????????????? | | ?????????????????????????????????????????????????? | | ?????????????????????????????????????????????????? | | ?????????????????????????????????????????????????? | | ?????????????????????????????????????????????????? | | ????????????????????????????????????????????>????? | | ???????????????????? # ??????????????????????? | | ???????????????????? # ??????????????????????? | | ???????????????????? + + ????????????????????? | | ???????????????????? # u# ????????????????????? | | ????????????????????## # ????????????????????? | | ????????????????????## # ????????????????????? | | ????????????????????## # ????????????????????? | | ????????????????????## ##????????????????????? | | ????????????????????## ##????????????????????? | | ????????????????????## ##????????????????????? | | ????????????????????## ##????????????????????? | | ???????????????????### ###???????????????????? | | ???????????????????### ###???????????????????? | | ????????? #### ##???????????????????? | | ?????????####+####### ##???????????????????? | | ????????? ""@ ##???????????????????? | | ????????? p T ##???????????????????? | | ????????? u ##???????????????????? | | ???????????########## ##??###??????????????? | | ???????????########## #######??????????????? | | ???????????????????###^^ =##### #### ???????????? | | ???????????????????###^^ ^^# ! # ???????????? | | ????????????????????## *%# !# ???????????? | | ????????????????????## u[+ !!] # ???????????? | | ????????????????????## # ! !!] # ???????????? | | ????????????????????## # !! # ???????????? | | ????????????????????## k# # ???????????? | | ????????????????????## # ?"" "" # ???????????? | | ????????????????????## # ??"S"" # ???????????? | | ????????????????????## Y # """" #####????????? | | ????????????????????## ##############????????? | | ????????????????????## # #????????? | | ????????????????????## + "" ""???????????? | | ????????????????????## # "" ""???????????? | | ????????????????????## # """ ""???????????? | | ????????????????????## # """ "????????????? | | ????????????????????## # """ """ ##???????? | | ????????????????????## + ##???????? | | ????????????????????## # ##???????? | | ????????????????????## # ##???????? | +----------------------------------------------------+ Best States ------------- Heat Dissipation 54 Energy Generation 15 Energy Capacity 160 Matter Stores 300 Matter Capacity 300 Sight Range 16 Terrain Scan Density 10 Armor Coverage 600 Resistance: KI 65 Resistance: TH 35 Resistance: EX 35 Resistance: EM 35 Resistance: I 35 Resistance: S 35 Resistance: P 35 Evasion (%) 50 Offensive Hacking 20 Item Schematics ----------------- None Robot Schematics ------------------ None Fabricated ------------ Nothing Alien Tech Used ----------------- None Achievements -------------- None Challenges ------------ None Game ------ Seed MobileBiomechanicalMapper Manual? 0 Play Time 00:19:07 Cumulative 570.3 hours Start 2024.12.05 @ 10:10:57 End 2024.12.05 @ 13:02:43 Sessions 1 Manual Loads 0 Difficulty Explorer Special Mode None Game No. 96 Rogue 6 Adventurer 6 Explorer 84 Win Type - Total 40 Types 15/8/2/5/2/1/1/4/2 Lore% 88 Gallery% 87 Achievement% 91 Wizard Run 0 Options --------- Layout 1 ASCII 0 Keyboard 0 Movement Mouse Keybinds 0 Fullscreen 1 Font 24/Smallcaps Map View 50x35 Zoom Use 0% Tactical HUD 1 Map Filters NONE Filters NONE Steam 1 RUN: fc20818a-c3b8-4889-b172-05e7815991cf